fUSD/lending_fUSD_20250724
["ID","MTS","AMOUNT","RATE_DAILY","PERIOD"]
[374531912,1753341032561,-5000.0,0.00025,2]
[374531914,1753341032570,-152.67,0.00025,2]
[374531916,1753341032580,-157.07,0.0002504,2]
[374531918,1753341032589,-150.0,0.00025044,2]
[374531920,1753341032599,-180.10601631,0.00025098,2]
[374531922,1753341032610,-200.0,0.000251,7]
[374531924,1753341032619,-157.07,0.00025123,2]
[374531926,1753341032628,-508.0,0.00025126,6]
[374531928,1753341032637,-150.0,0.00025178,2]
[374531930,1753341032647,-157.07,0.00025206,2]
[374531932,1753341032656,-231.28369723,0.00025245,2]
[374531934,1753341032666,-500.0,0.00025245,2]
[374531936,1753341032675,-500.0,0.00025245,2]
[374531938,1753341032684,-500.0,0.00025245,2]
[374531940,1753341032694,-500.0,0.00025245,2]
[374531942,1753341032707,-418.45491207,0.00025245,2]
[374531944,1753341032727,-500.0,0.00025245,2]
[374531946,1753341032738,-500.0,0.00025245,2]
[374531948,1753341032748,-500.0,0.00025245,2]
[374531950,1753341032757,-500.0,0.00025245,2]
[374531952,1753341032768,-500.0,0.00025245,2]
[374531954,1753341032779,-500.0,0.00025245,2]
[374531956,1753341032789,-500.0,0.00025245,2]
[374531959,1753341032799,-500.0,0.00025245,2]
[374531961,1753341032809,-500.0,0.00025245,2]
[374531963,1753341032819,-500.0,0.00025245,2]
[374531965,1753341032830,-500.0,0.00025245,2]
[374531967,1753341032839,-500.0,0.00025245,2]
[374531969,1753341032848,-164.45734943,0.00025245,2]
[374531971,1753341032859,-4399.10497015,0.00025354,2]
[374531973,1753341032868,-150.0,0.00025441,2]
[374531975,1753341032878,-150.0,0.00025471,2]
[374531978,1753341032888,-3463.05135197,0.000255,7]
[374531980,1753341032898,-457.0,0.0002555,2]
[374531982,1753341032908,-1670.27920458,0.00025584,2]
[374531984,1753341032917,-800.0,0.000256,9]
[374531986,1753341032927,-11909.77531096,0.00025664,2]
[374531988,1753341032936,-3328.0,0.00025677,7]
[374531990,1753341032945,-150.0,0.00025684,2]
[374531992,1753341032955,-1600.0,0.000257,9]
[374531993,1753341032965,-2374.73584569,0.000257,2]
[374531995,1753341032974,-150.0,0.00025735,2]
[374531997,1753341032984,-150.0,0.00025776,2]
[374531999,1753341032993,-2000.0,0.000258,2]
[374532001,1753341033003,-2400.0,0.000258,9]
[374532003,1753341033013,-152.23049951,0.000258,2]
[374532004,1753341033024,-152.23049951,0.0002582,2]
[374532006,1753341033035,-152.23049951,0.0002584,2]
[374532008,1753341033045,-152.23049951,0.0002586,2]
[374532010,1753341033056,-1058.1488,0.00025873,2]
[374532012,1753341033066,-6180.57854091,0.0002588,2]
[374532014,1753341033077,-157.77938259,0.00025889,2]
[374532016,1753341033088,-5000.0,0.0002589,2]
[374532018,1753341033097,-588.8898615,0.000259,2]
[374532020,1753341033107,-3300.0,0.000259,9]
[374532022,1753341033117,-284.0,0.00025916,2]
[374532024,1753341033127,-150.0,0.00025939,2]
[374532026,1753341033138,-150.0,0.0002594,2]
[374532028,1753341033148,-134.3383374,0.0002594,2]
[374532031,1753341033162,-15.6616626,0.0002594,2]
[374532033,1753341033172,-150.0,0.0002594,2]
[374532034,1753341033183,-150.0,0.0002594,2]
[374532036,1753341033193,-150.0,0.0002594,2]
[374532072,1753341033544,-156.522,0.0002594,2]
[374532076,1753341033572,-3354.0,0.0002594,2]
[374532078,1753341033582,-953.0,0.0002594,2]
[374532080,1753341033591,-807.0,0.0002594,2]
[374532082,1753341033601,-1269.0,0.0002594,2]
[374532084,1753341033611,-563.0,0.0002594,2]
[374532086,1753341033621,-960.0,0.0002594,2]
[374532088,1753341033630,-2018.0,0.0002594,2]
[374532090,1753341033640,-1688.0,0.0002594,2]
[374532092,1753341033649,-596.0,0.0002594,2]
[374532094,1753341033659,-1289.0,0.0002594,2]
[374532096,1753341033668,-1167.0,0.0002594,2]
[374532098,1753341033677,-890.0,0.0002594,2]
[374532100,1753341033687,-1670.27920457,0.00025952,2]
[374532102,1753341033697,-500.0,0.00025973,2]
[374532104,1753341033707,-576.62523696,0.00025973,2]
[374532105,1753341033717,-505.31191705,0.00025973,2]
[374532107,1753341033726,-501.71157845,0.00025973,2]
[374532109,1753341033738,-505.66396458,0.00025973,2]
[374532110,1753341033749,-500.0,0.00025973,2]
[374532112,1753341033758,-503.02584058,0.00025973,2]
[374532114,1753341033771,-500.0,0.00025973,2]
[374532116,1753341033782,-502.34044548,0.00025973,2]
[374532117,1753341033791,-509.20696183,0.00025973,2]
[374532119,1753341033800,-500.90731436,0.00025973,2]
[374532121,1753341033811,-500.0,0.00025973,2]
[374532123,1753341033820,-500.0,0.00025973,2]
[374532125,1753341033830,-162.18189456,0.00025973,2]
[374532126,1753341033840,-500.0,0.00025973,2]
[374532128,1753341033850,-500.0,0.00025973,2]
[374532130,1753341033859,-507.88411216,0.00025973,2]
[374532132,1753341033869,-12602.0,0.00025973,2]
[374532133,1753341033879,-477.18900901,0.0002598,3]
[374532135,1753341033888,-477.18900901,0.0002598,3]
[374532137,1753341033898,-5364.17110333,0.0002598,3]
[374532139,1753341033910,-787.13712285,0.0002598,3]
[374532141,1753341033921,-692.9863151,0.0002598,3]
[374532143,1753341033933,-2041.47438686,0.0002598,3]
[374532144,1753341033943,-211.01152796,0.0002598,3]
[374532146,1753341033953,-839.91269601,0.0002598,3]
[374532148,1753341033963,-160.0,0.0002598,3]
[374532150,1753341033973,-6994.58821092,0.00025989,3]
[374532154,1753341034009,-2827.78946412,0.00025989,3]
[374532155,1753341034024,-1978.49648228,0.00025989,3]
[374532157,1753341034035,-352.84565437,0.00025989,3]
[374532167,1753341034143,-5617.81804461,0.00025989,3]
[374532169,1753341034152,-248.68195539,0.0002599,3]
[374532171,1753341034164,-400.23252303,0.0002599,3]
[374532178,1753341034239,-1614.54545011,0.0002599,3]
[374532180,1753341034250,-300.39827504,0.0002599,3]
[374532716,1753341039713,-2159.87722957,0.00023803,2]
[374532721,1753341039752,-500.93277043,0.00023803,2]
[374532723,1753341039761,-203.16744539,0.0002499,2]
[374532725,1753341039775,-359.99999997,0.0002499,2]
[374532727,1753341039788,-4567.29436414,0.0002499,2]
[374532730,1753341039800,-613.84854313,0.0002499,2]
[374532732,1753341039812,-310.68964737,0.0002499,2]
[374532734,1753341039821,-152.23049951,0.0002588,2]
[374532736,1753341039832,-1148.387329,0.000259,5]
[374532738,1753341039841,-1911.09252414,0.0002599,3]
[374532740,1753341039853,-880.646,0.0002599,3]
[374532742,1753341039864,-366.1718,0.0002599,3]
[374532744,1753341039876,-15178.34282613,0.0002599,3]
[374532746,1753341039887,-432.95504634,0.0002599,3]
[374532751,1753341039918,-374.7953916,0.0002599,3]
[374532753,1753341039931,-49378.28963332,0.0002599,3]
[374532755,1753341039941,-839.91269601,0.0002599,3]
[374532757,1753341039950,-151058.071778,0.0002599,3]
[374532759,1753341039961,-11631.86646882,0.0002599,3]
[374532761,1753341039972,-106697.77126686,0.0002599,3]
[374532764,1753341039984,-3095.24004,0.0002599,3]
[374532842,1753341040728,-152.23049951,0.000259,2]
[374532844,1753341040739,-601.99590209,0.0002599,3]
[374532849,1753341040772,-312.47287316,0.0002599,3]
[374532851,1753341040784,-4280.0000002,0.0002599,3]
[374532862,1753341040875,-352.76241,0.0002599,3]
[374532864,1753341040887,-294788.88711487,0.0002599,3]
[374532866,1753341040896,-160.28,0.0002599,2]
[374532868,1753341040906,-508.0,0.00025998,7]
[374532870,1753341040916,-324.82045641,0.00025999,2]
[374532872,1753341040925,-500.0,0.00025999,2]
[374532874,1753341040935,-500.0,0.00025999,2]
[374532876,1753341040945,-347.98299537,0.00025999,2]
[374532878,1753341040954,-670.91034485,0.00025999,2]
[374532880,1753341040963,-300.0,0.00025999,10]
[374532882,1753341040973,-306.76977049,0.00025999,10]
[374532884,1753341040982,-500.0,0.00025999,2]
[374532886,1753341040992,-500.0,0.00025999,2]
[374532888,1753341041002,-500.0,0.00025999,2]
[374532890,1753341041011,-500.0,0.00025999,2]
[374532891,1753341041023,-245.03763067,0.00025999,2]
[374532892,1753341041032,-154.6120331,0.00025999,2]
[374532893,1753341041041,-500.0,0.00025999,2]
[374532895,1753341041051,-581.77192211,0.00025999,2]
[374532897,1753341041060,-500.0,0.00025999,2]
[374532899,1753341041070,-195.30323759,0.00025999,2]
[374532901,1753341041080,-500.0,0.00025999,2]
[374532903,1753341041090,-526.78219636,0.00025999,2]
[374532905,1753341041100,-1000.0,0.00025999,2]
[374532907,1753341041109,-1000.0,0.00025999,2]
[374532909,1753341041119,-1000.0,0.00025999,2]
[374532911,1753341041129,-1000.0,0.00025999,2]
[374532913,1753341041139,-1000.0,0.00025999,2]
[374532915,1753341041149,-1004.7426,0.00025999,2]
[374532917,1753341041159,-481.37745153,0.00025999,2]
[374532919,1753341041168,-1000.0,0.00025999,2]
[374532921,1753341041178,-2685.52489433,0.00025999,2]
[374532923,1753341041187,-5032.18833914,0.00025999,3]
[374532925,1753341041198,-135938.61762082,0.00026,2]
[374532927,1753341041207,-13530.04078268,0.00026,2]
[374532929,1753341041217,-40818.46,0.00026,3]
[374532931,1753341041227,-315167.24516957,0.00026,5]
[374532936,1753341041258,-366.9794,0.00026,5]
[374532948,1753341041366,-391.65901872,0.00026,5]
[374532960,1753341041471,-485.09469325,0.00026,5]
[374532962,1753341041483,-1492.5,0.00026,5]
[374532964,1753341041494,-2258.900003,0.00026,5]
[374533243,1753341044156,-153.0,0.00025801,2]
[374533245,1753341044166,-129.16188,0.00025801,2]
[374533247,1753341044177,-23.83812,0.00025801,2]
[374533249,1753341044187,-153.0,0.00025801,2]
[374533251,1753341044202,-153.0,0.00025801,2]
[374533253,1753341044212,-391.25230225,0.00025989,10]
[374533260,1753341044273,-704.92049205,0.00025989,10]
[374533263,1753341044283,-5187.28038795,0.00026,5]
[374533265,1753341044294,-388.09172993,0.00026,5]
[374533270,1753341044337,-23540.0,0.00026,5]
[374533276,1753341044385,-2320.53999975,0.00026,5]
[374533410,1753341045901,-748.97502,0.00026,5]
[374533413,1753341045915,-1138.65,0.00026,5]
[374533415,1753341045927,-31718.38228009,0.00026,5]
[374533419,1753341045959,-588.29799191,0.00026,5]
[374533421,1753341045971,-1998.68299409,0.00026,5]
[374533424,1753341045987,-895.39682304,0.00026,5]
[374533426,1753341045999,-4993.6264493,0.00026,5]
[374533429,1753341046011,-3020.69992,0.00026,5]
[374533445,1753341046160,-13316.55083222,0.00026,5]
[374533450,1753341046192,-287.81999992,0.00026,5]
[374533454,1753341046226,-4588.61900461,0.00026,5]
[374533459,1753341046257,-1944.0,0.00026,5]
[374533461,1753341046269,-5880.0,0.00026,5]
[374534595,1753341137774,500.0,0.000273,120]
[374534596,1753341149516,500.0,0.000273,120]
[374534597,1753341153040,500.0,0.00016657,2]
[374534598,1753341161033,500.0,0.000273,120]
[374534600,1753341163886,500.0,0.00016657,2]
[374534601,1753341171794,261.0,0.000273,120]
[374534602,1753341178091,500.0,0.00016657,2]
[374534603,1753341187306,500.0,0.00016657,2]
[374534604,1753341193181,500.0,0.00027397,120]
[374534605,1753341196173,500.0,0.00016657,2]
[374534606,1753341199713,2000.0,0.00027397,120]
[374534607,1753341201389,500.0,0.00027397,120]
[374534608,1753341203392,500.0,0.00016657,2]
[374534610,1753341211011,500.0,0.00016657,2]
[374534611,1753341220141,500.0,0.00016657,2]
[374534612,1753341229292,500.0,0.00016657,2]
[374534613,1753341236803,500.0,0.00016657,2]
[374534614,1753341246632,500.0,0.00016657,2]
[374534615,1753341253924,500.0,0.00016657,2]
[374534616,1753341262988,500.0,0.00016657,2]
[374534617,1753341269802,303.0,0.00026651,120]
[374534618,1753341270209,303.0,0.00026641,120]
[374534619,1753341271170,303.0,0.00026631,120]
[374534620,1753341298391,564.7,0.00016657,2]
[374534625,1753341432415,1000.79,0.0002682,120]
[374534626,1753341792369,500.0,0.00027397,120]
[374534627,1753341801870,500.0,0.00027397,120]
[374534633,1753341954796,651.15335711,0.00015,10]
[374534635,1753341989677,212.0,0.00026017,120]
[374534636,1753341989976,212.0,0.00026007,120]
[374534637,1753341990329,212.0,0.00025997,120]
[374534652,1753342086733,800.0,0.00026986,120]
[374534654,1753342118248,4688.45,0.000151,2]
[374534655,1753342189360,202.81,0.00013699,2]
[374534659,1753342232091,-224.2872805,0.00016999,2]
[374534660,1753342232102,-627.92667831,0.00016999,2]
[374534663,1753342232201,-572.07332169,0.00016999,2]
[374534664,1753342232210,-300.0,0.00016999,2]
[374534665,1753342232220,-12962.60968693,0.00017,2]
[374534666,1753342232231,-263.32349477,0.00017,2]
[374534667,1753342232362,-51085.51248078,0.00017,2]
[374534669,1753342232374,-15234.89135637,0.00017,2]
[374534671,1753342232386,-2828.37001604,0.00017,2]
[374534674,1753342232397,-8015.91999245,0.00017,2]
[374534675,1753342232406,-420.0,0.00018567,2]
[374534676,1753342232415,-250.0,0.000187,2]
[374534677,1753342232424,-2000.0,0.000187,3]
[374534678,1753342232434,-300.0,0.000187,2]
[374534679,1753342232443,-209.41280385,0.000189,2]
[374534680,1753342232454,-413.445892,0.000189,2]
[374534681,1753342232463,-498.06674206,0.00018957,2]
[374534682,1753342232473,-1200.81,0.00019178,2]
[374534683,1753342232482,-622.85869582,0.00019245,2]
[374534684,1753342232492,-622.85869582,0.0001959,2]
[374534685,1753342232503,-622.85869582,0.00019934,2]
[374534686,1753342232512,-582.83376933,0.0002,2]
[374534687,1753342232524,-3193.69755988,0.0002,2]
[374535304,1753342238818,-12056.89393002,0.0002,2]
[374535306,1753342238830,-2204.56244658,0.0002,2]
[374535309,1753342238842,-401.616215,0.0002,2]
[374535321,1753342238950,-1074.08107717,0.0002,2]
[374535333,1753342239055,-476.3,0.0002,2]
[374535340,1753342239111,-10.01500202,0.0002,2]
[374535342,1753342239121,-202.81,0.00020187,2]
[374535344,1753342239131,-97.80526475,0.00020279,2]
[374535346,1753342239143,-489.19473525,0.00020279,2]
[374535348,1753342239153,-622.85869582,0.00020279,3]
[374535350,1753342239163,-622.85869582,0.00020624,3]
[374535352,1753342239172,-960.10242499,0.00020865,2]
[374535546,1753342241590,-240.70757501,0.00020865,2]
[374535549,1753342241600,-622.85869582,0.00020969,4]
[374535551,1753342241609,-827.90011912,0.00020999,2]
[374535553,1753342241618,-3649.80965258,0.00021,2]
[374535555,1753342241631,-16350.19034742,0.00021,2]
[374535557,1753342241650,-600.0,0.00021049,2]
[374535559,1753342241659,-622.85869582,0.00021314,5]
[374535561,1753342241668,-666.0,0.00021355,3]
[374535563,1753342241678,-2515.18,0.00021503,2]
[374535565,1753342241687,-622.85869582,0.00021659,5]
[374535567,1753342241696,-1330.4,0.00021662,2]
[374535569,1753342241705,-2616.65925587,0.00021817,2]
[374535571,1753342241714,-505.31191705,0.00021883,2]
[374535573,1753342241723,-166.173443,0.00021917,2]
[374535575,1753342241732,-194.035414,0.00021917,2]
[374535577,1753342241741,-159.908179,0.00021917,2]
[374535579,1753342241750,-159.908179,0.00021917,2]
[374535581,1753342241763,-159.908179,0.00021917,2]
[374535584,1753342241771,-173.199657,0.00021917,2]
[374535586,1753342241780,-173.199657,0.00021917,2]
[374535588,1753342241788,-173.199657,0.00021917,2]
[374535590,1753342241795,-166.731127,0.00021917,2]
[374535592,1753342241806,-166.731127,0.00021917,2]
[374535594,1753342241814,-24379.58558589,0.0002192,2]
[374535596,1753342241823,-20000.0,0.00022,2]
[374535599,1753342241832,-470.0,0.00022,2]
[374535601,1753342241841,-622.85869582,0.00022003,6]
[374535603,1753342241851,-823.0,0.00022149,2]
[374535605,1753342241859,-159.908179,0.00022191,2]
[374535607,1753342241869,-166.731126,0.00022191,2]
[374535610,1753342241879,-173.199657,0.00022191,2]
[374535611,1753342241888,-622.85869582,0.00022348,7]
[374535613,1753342241897,-159.908179,0.00022465,2]
[374535615,1753342241907,-166.731126,0.00022465,2]
[374535618,1753342241929,-173.199657,0.00022465,2]
[374535620,1753342241940,-166.731127,0.00022465,2]
[374535622,1753342241949,-800.0,0.000225,2]
[374535624,1753342241958,-1200.81,0.00022551,2]
[374535626,1753342241967,-2616.65925587,0.00022586,2]
[374535628,1753342241977,-150.0,0.00022646,2]
[374535630,1753342241987,-622.85869582,0.00022693,7]
[374535632,1753342241996,-150.0,0.00022832,2]
[374535634,1753342242008,-150.0,0.00022835,2]
[374535636,1753342242017,-232.40846493,0.00022986,2]
[374535638,1753342242027,-20000.0,0.00023,2]
[374535640,1753342242037,-1000.0,0.00023,2]
[374535642,1753342242047,-1000.0,0.00023,2]
[374535644,1753342242057,-1000.0,0.00023,2]
[374535646,1753342242068,-622.85869582,0.00023038,8]
[374535648,1753342242078,-1086.62,0.00023112,2]
[374535650,1753342242087,-5000.0,0.00023135,2]
[374535652,1753342242098,-180.0,0.00023141,7]
[374535654,1753342242108,-461.0,0.0002318,2]
[374535656,1753342242118,-282.3,0.00023191,2]
[374535658,1753342242127,-150.0,0.00023204,2]
[374535660,1753342242139,-15577.94,0.00023288,2]
[374535662,1753342242148,-150.0,0.00023311,2]
[374535664,1753342242158,-150.0,0.00023329,2]
[374535666,1753342242167,-2616.65925587,0.00023355,2]
[374535668,1753342242177,-412.54,0.00023368,2]
[374535670,1753342242186,-9999.99,0.00023368,2]
[374535672,1753342242195,-3143.54,0.00023368,2]
[374535674,1753342242206,-622.85869582,0.00023383,9]
[374535676,1753342242215,-1000.0,0.00023394,2]
[374535678,1753342242225,-730.42,0.000235,2]
[374535680,1753342242235,-622.85869582,0.00023728,9]
[374535682,1753342242245,-167.82,0.00023822,2]
[374535684,1753342242255,-159.908179,0.00023835,2]
[374535686,1753342242265,-166.731126,0.00023835,2]
[374535688,1753342242275,-173.199657,0.00023835,2]
[374535690,1753342242285,-1000.79,0.0002384,2]
[374535692,1753342242294,-150.0,0.00023852,2]
[374535694,1753342242303,-150.0,0.0002397,2]
[374535696,1753342242313,-509.0,0.00023998,2]
[374535698,1753342242323,-20000.0,0.00024,2]
[374535700,1753342242332,-6565.1295436,0.00024,14]
[374535702,1753342242342,-150.0,0.00024018,2]
[374535704,1753342242351,-250.0,0.00024063,2]
[374535706,1753342242361,-622.85869582,0.00024072,10]
[374535708,1753342242370,-389.24,0.000241,2]
[374535710,1753342242380,-2616.65925587,0.00024125,2]
[374535712,1753342242389,-186.7540647,0.00024138,2]
[374535714,1753342242399,-1152.0,0.00024192,2]
[374535716,1753342242408,-1200.81,0.00024238,2]
[374535718,1753342242417,-282.3,0.00024351,2]
[374535720,1753342242427,-477.18900901,0.00024354,2]
[374535722,1753342242436,-211.01152796,0.00024354,2]
[374535724,1753342242445,-160.0,0.00024354,2]
[374535726,1753342242455,-839.91269601,0.00024354,2]
[374535728,1753342242464,-451.0,0.0002437,2]
[374535730,1753342242474,-152.0,0.00024391,3]
[374535732,1753342242484,-150.0,0.000244,2]
[374535734,1753342242493,-622.85869582,0.00024417,11]
[374535736,1753342242506,-150.0,0.00024419,2]
[374535738,1753342242516,-150.0,0.00024524,2]
[374535740,1753342242525,-150.0,0.00024528,2]
[374535742,1753342242534,-1000.0,0.00024579,2]
[374535744,1753342242544,-150.0,0.00024595,2]
[374535746,1753342242553,-150.0,0.00024599,2]
[374535748,1753342242562,-300.0,0.00024622,2]
[374535750,1753342242571,-1000.0,0.00024658,2]
[374535752,1753342242580,-150.0,0.00024667,2]
[374535755,1753342242589,-200.0,0.00024735,2]
[374535757,1753342242598,-150.0,0.00024747,2]
[374535759,1753342242607,-622.85869582,0.00024762,11]
[374535762,1753342242617,-1000.0,0.000248,2]
[374535763,1753342242626,-8955.21099393,0.000248,3]
[374535764,1753342242636,-160.0,0.000248,3]
[374535765,1753342242645,-509.0,0.00024855,3]
[374535766,1753342242655,-150.0,0.00024879,2]
[374535767,1753342242664,-201.0,0.0002489,2]
[374535768,1753342242673,-17910.4219879,0.0002489,3]
[374535769,1753342242683,-2616.65925587,0.00024894,2]
[374535770,1753342242692,-2000.0,0.000249,2]
[374535771,1753342242702,-42867.21092602,0.000249,2]
[374535772,1753342242711,-160.35431192,0.000249,2]
[374535773,1753342242720,-150.0,0.00024913,2]
[374535775,1753342242730,-150.0,0.00024965,2]
[374535778,1753342242740,-17910.4219879,0.0002499,3]
[374535780,1753342242749,-20000.0,0.00025,2]
[374535782,1753342242762,-152.66,0.00025,2]
[374535784,1753342242772,-300.0,0.00025,2]
[374535787,1753342242782,-5000.0,0.00025,2]
[374535789,1753342242792,-1206.0,0.00025,2]
[374535791,1753342242801,-152.97575867,0.00025,2]
[374535793,1753342242811,-200.0,0.000251,7]
[374535795,1753342242820,-622.85869582,0.00025107,12]
[374535797,1753342242830,-152.0,0.0002514,4]
[374535799,1753342242839,-256.60894681,0.00025181,2]
[374535801,1753342242848,-8955.21099393,0.00025235,3]
[374535803,1753342242858,-150.0,0.00025241,2]
[374535805,1753342242868,-2629.74290652,0.00025245,2]
[374535807,1753342242877,-231.28369723,0.00025245,2]
[374535809,1753342242887,-500.0,0.00025245,2]
[374535811,1753342242896,-500.0,0.00025245,2]
[374535813,1753342242905,-500.0,0.00025245,2]
[374535815,1753342242914,-500.0,0.00025245,2]
[374535817,1753342242924,-500.0,0.00025245,2]
[374535819,1753342242933,-500.0,0.00025245,2]
[374535821,1753342242942,-500.0,0.00025245,2]
[374535823,1753342242952,-500.0,0.00025245,2]
[374535825,1753342242963,-500.0,0.00025245,2]
[374535827,1753342242973,-500.0,0.00025245,2]
[374535829,1753342242982,-500.0,0.00025245,2]
[374535831,1753342242991,-500.0,0.00025245,2]
[374535833,1753342243001,-500.0,0.00025245,2]
[374535835,1753342243012,-500.0,0.00025245,2]
[374535837,1753342243021,-500.0,0.00025245,2]
[374535839,1753342243030,-500.0,0.00025245,2]
[374535841,1753342243040,-201.0,0.0002535,2]
[374535843,1753342243049,-151.0,0.00025403,2]
[374535845,1753342243061,-150.0,0.00025445,2]
[374535847,1753342243071,-622.85869582,0.00025452,13]
[374535849,1753342243080,-150.0,0.00025463,2]
[374535851,1753342243090,-282.3,0.0002551,2]
[374535853,1753342243099,-168.0,0.00025545,2]
[374535855,1753342243109,-442.0,0.0002555,2]
[374535856,1753342243119,-400.0,0.000256,9]
[374535858,1753342243128,-150.0,0.00025652,2]
[374535860,1753342243139,-600.0,0.00025699,2]
[374535862,1753342243149,-800.0,0.000257,9]
[374535864,1753342243158,-5577.86740148,0.000257,2]
[374535866,1753342243168,-509.0,0.00025712,4]
[374535868,1753342243177,-8955.21099393,0.00025751,3]
[374535870,1753342243187,-153.0,0.0002576,2]
[374535872,1753342243196,-153.0,0.0002576,2]
[374535874,1753342243206,-153.0,0.0002576,2]
[374535876,1753342243215,-153.0,0.0002576,2]
[374535878,1753342243225,-153.0,0.0002576,2]
[374535880,1753342243234,-153.0,0.0002576,2]
[374535882,1753342243243,-153.0,0.0002576,2]
[374535884,1753342243252,-153.0,0.0002576,2]
[374535886,1753342243263,-153.0,0.0002576,2]
[374535888,1753342243273,-153.0,0.0002576,2]
[374535890,1753342243282,-153.0,0.0002576,2]
[374535892,1753342243291,-153.0,0.0002576,2]
[374535894,1753342243300,-153.0,0.0002576,2]
[374535896,1753342243310,-153.0,0.0002576,2]
[374535898,1753342243320,-153.0,0.0002576,2]
[374535900,1753342243329,-153.0,0.0002576,2]
[374535902,1753342243339,-153.0,0.0002576,2]
[374535904,1753342243347,-153.0,0.0002576,2]
[374535906,1753342243356,-153.0,0.0002576,2]
[374535908,1753342243366,-153.0,0.0002576,2]
[374535910,1753342243375,-153.0,0.0002576,2]
[374535912,1753342243384,-153.0,0.0002576,2]
[374535914,1753342243393,-153.0,0.0002576,2]
[374535916,1753342243402,-153.0,0.0002576,2]
[374535918,1753342243412,-153.0,0.0002576,2]
[374535920,1753342243422,-153.0,0.0002576,2]
[374535922,1753342243432,-153.0,0.0002576,2]
[374535924,1753342243446,-153.0,0.0002576,2]
[374535926,1753342243455,-153.0,0.0002576,2]
[374535928,1753342243465,-153.0,0.0002576,2]
[374535930,1753342243475,-153.0,0.0002576,2]
[374535967,1753342243812,-153.0,0.0002576,2]
[374535969,1753342243822,-153.0,0.0002576,2]
[374535971,1753342243832,-153.0,0.0002576,2]
[374535973,1753342243841,-153.0,0.0002576,2]
[374535975,1753342243850,-153.0,0.0002576,2]
[374535977,1753342243859,-153.0,0.0002576,2]
[374535979,1753342243868,-153.0,0.0002576,2]
[374535981,1753342243877,-153.0,0.0002576,2]
[374535983,1753342243887,-153.0,0.0002576,2]
[374535985,1753342243896,-153.0,0.0002576,2]
[374535987,1753342243905,-153.0,0.0002576,2]
[374535989,1753342243915,-153.0,0.0002576,2]
[374535991,1753342243924,-153.0,0.0002576,2]
[374535993,1753342243935,-153.0,0.0002576,2]
[374535995,1753342243944,-153.0,0.0002576,2]
[374535997,1753342243953,-153.0,0.0002576,2]
[374536000,1753342243963,-153.0,0.0002576,2]
[374536002,1753342243972,-153.0,0.0002576,2]
[374536004,1753342243982,-153.0,0.0002576,2]
[374536006,1753342243991,-153.0,0.0002576,2]
[374536008,1753342244001,-153.0,0.0002576,2]
[374536010,1753342244013,-153.0,0.0002576,2]
[374536012,1753342244023,-153.0,0.0002576,2]
[374536014,1753342244033,-153.0,0.0002576,2]
[374536016,1753342244042,-153.0,0.0002576,2]
[374536018,1753342244052,-153.0,0.0002576,2]
[374536020,1753342244068,-153.0,0.0002576,2]
[374536022,1753342244077,-153.0,0.0002576,2]
[374536024,1753342244087,-153.0,0.0002576,2]
[374536026,1753342244097,-153.0,0.0002576,2]
[374536028,1753342244107,-153.0,0.0002576,2]
[374536030,1753342244117,-153.0,0.0002576,2]